Cogmind - Beta 16 @@@ ROGUE MODE // 2026.01.17 @ 15:11:59 Player: Biasface Result: Destroyed by G-47 Trooper with Particle Gun Performance ------------- Evolutions (0) 0 Regions Visited (2) 400 Robots Destroyed (29) 145 Value Destroyed (485) 485 Prototype IDs (2) 40 Alien Tech Used (0) 0 Bonus (0) 0 TOTAL SCORE: 1070 Bonus ------- None Cogmind --------- Core Integrity 0/250 Matter 284/300 Energy 264/265 System Corruption 0% Temperature Hot (278) Movement Treading (240) Ox1 Location -10/Mines Parts ------- > --- POWER (1) -------- Improved Ion Engine > --- PROPULSION (2) --- Light Treads > --- UTILITY (2) ------ Medium Storage Unit Improved Terrain Scanner > --- WEAPON (2) ------- Medium Laser Assault Rifle > --- INVENTORY (10) --- Improved Ion Engine Improved Ion Engine Light Treads Structural Scanner Seismic Detector Medium Armor Plating Medium Armor Plating Medium Laser Light Assault Rifle Rocket Launcher Peak State ------------ > --- POWER ------------ Improved Ion Engine > --- PROPULSION ------- Light Treads Light Treads > --- UTILITY ---------- Medium Storage Unit Improved Terrain Scanner > --- WEAPON ----------- Assault Rifle Rocket Launcher > --- INVENTORY -------- Improved Ion Engine Improved Ion Engine Light Treads Structural Scanner Seismic Detector Medium Armor Plating Medium Armor Plating Medium Laser Medium Laser Light Assault Rifle [Rating: 12] Favorites ----------- Power Ion Engine Engine Ion Engine Propulsion Light Treads Treads Light Treads Leg Aluminum Leg Utility Improved Terrain Scanner Device Improved Terrain Scanner Storage Medium Storage Unit Weapon Assault Rifle Energy Gun Medium Laser Ballistic Gun Assault Rifle Launcher Rocket Launcher Build | -11 -10 -10 ------- Run | Yrd Mat Min Slots Evolved . | . . . Power . | . . . Propulsion . | . . . Utility . | . . . Weapon . | . . . Parts Attached 19 | 8 9 2 Power 4 | 1 3 . Engine 4 | 1 3 . Core . | . . . Reactor . | . . . Propulsion 5 | 2 3 . Treads 3 | . 3 . Leg 2 | 2 . . Wheel . | . . . Hover . | . . . Flight . | . . . Utility 3 | 2 1 . Device 1 | 1 . . Storage 2 | 1 1 . Processor . | . . . Hackware . | . . . Protection . | . . . Artifact . | . . . Weapon 7 | 3 2 2 Energy Gun 3 | 1 1 1 Energy Cannon . | . . . Ballistic Gun 3 | 2 1 . Ballistic Cannon . | . . . Launcher 1 | . . 1 Special Weapon . | . . . Impact Weapon . | . . . Slashing Weapon . | . . . Piercing Weapon . | . . . Special Melee Weapon . | . . . Unidentified Prototypes . | . . . Parts Lost 1 | . . 1 Power . | . . . Propulsion 1 | . . 1 Utility . | . . . Weapon . | . . . Highest Loss Streak 1 | . . 1 To Critical Strikes . | . . . Average Backups 9 | 3 9 10 Power 1 | . 1 2 Propulsion 1 | 1 1 1 Utility 2 | . 2 4 Weapon 2 | . 2 3 Tool/Special . | . . . Unused Backups 13 | . 5 8 Power 5 | . 3 2 Propulsion 3 | . 2 1 Utility 4 | . . 4 Weapon 1 | . . 1 Tool/Special . | . . . Average Slot Usage (%) 99 | . 99 100 Engine 14 | . 14 14 Treads 18 | . 16 28 Leg 8 | . 10 . Device 14 | . 14 14 Storage 14 | . 14 14 Energy Gun 13 | . 13 13 Ballistic Gun 14 | . 14 14 Peak Build Rating 12 | 9 11 12 Average Rating 9 | 6 10 11 On Entrance 6 | . 9 11 Avg Prop Armor Cover (%) . | . . . Naked Turns . | . . . Heaviest Build 24 | 14 22 24 Greatest Support 40 | 20 40 40 Greatest Overweight (x) 2 | 2 . . Average Overweight (x) . | . . . Largest Inventory Capacity 10 | 8 10 10 Average Capacity 9 | 7 9 10 Most Carried 10 | 6 10 10 Average Carried 9 | 4 9 10 Final Capacity 10 | 8 10 10 Final Carried 10 | 5 10 10 Class Distribution -------------------- 100% | Mutant Dominant Class ---------------- Mutant | -10/Materials Mutant | -10/Mines Resources | -11 -10 -10 ----------- Run | Yrd Mat Min Matter Collected 686 | 231 352 103 Remotely . | . . . Salvage Created 738 | 25 500 213 Parts 55 | 8 31 16 Haulers Intercepted 2 | . 2 . Recyclers Shooed . | . . . Parts Field Recycled . | . . . Retrieved Matter . | . . . Parts Self-Destructed . | . . . Prevented . | . . . Parts Restored . | . . . Kills | -11 -10 -10 ------- Run | Yrd Mat Min Combat Hostiles Destroyed 23 | . 14 9 Guns 21 | . 14 7 AOE 2 | . . 2 Classes Destroyed 5 | 1 4 . Tunneler 2 | 2 . . Hauler 2 | . 2 . Watcher 2 | . 2 . Swarmer 15 | . 9 6 Grunt 8 | . 5 3 Best Kill Streak 5 | 2 5 3 Combat Bots Only 3 | . 3 3 Max Kills in Single Turn 2 | 1 1 2 Gunslinging . | . . . Exploded 2 | . . 2 Melee . | . . . Uniques/NPCs Destroyed . | . . . Combat | -11 -10 -10 -------- Run | Yrd Mat Min Hostile Shots Fired 122 | . 72 50 Missed 25 | . 16 9 Hits 97 | . 56 41 Projectile 97 | . 56 41 Critical Strikes 1 | . . 1 Damage Taken 1018 | . 540 478 Core 257 | . 123 134 Absorbed by Shields . | . . . Regen/Repaired (Parts) 47 | . 47 . Core Remaining (%) 100 | 100 . . Volleys Fired 83 | 4 58 21 Largest 2 | 2 2 2 Hottest 70 | 60 70 70 Shots Fired 164 | 8 116 40 Gun 163 | 8 116 39 Cannon . | . . . Launcher 1 | . . 1 Special . | . . . Kinetic 82 | 4 58 20 Thermal 81 | 4 58 19 Explosive 1 | . . 1 Electromagnetic . | . . . Robot Hit Streak 10 | 3 10 5 Robot Miss Streak 6 | 1 6 2 Penetration Max . | . . . Secondary Targets 3 | . . 3 Max Gunslinging Chain 1 | . . 1 Shots Hit Robots 94 | 5 65 24 Core Hits 41 | 2 25 14 Critical Kills 1 | . 1 . Critical Parts Destroyed 1 | . . 1 Critical Strikes 6 | . 5 1 Burn 4 | . 4 . Destroy 2 | . 1 1 Melee Attacks . | . . . Impact . | . . . Slashing . | . . . Piercing . | . . . Sneak Attacks . | . . . Combat Hostiles . | . . . Follow-up Attacks . | . . . Damage Inflicted 1361 | 60 844 457 Guns 1228 | 60 844 324 Cannons . | . . . Explosions 133 | . . 133 Melee . | . . . Ramming . | . . . Kinetic 702 | 28 491 183 Thermal 526 | 32 353 141 Explosive 133 | . . 133 Electromagnetic . | . . . Impact . | . . . Slashing . | . . . Piercing . | . . . Highest Corruption . | . . . Average Corruption . | . . . Corruption Purged . | . . . Corruption Blocked . | . . . Overload Shots . | . . . Overflow Damage 11 | . . 11 Projectiles . | . . . Explosions 11 | . . 11 Melee . | . . . Knockbacks . | . . . Impact . | . . . Kinetic . | . . . Secondary . | . . . Self-Inflicted Damage . | . . . Shots . | . . . Rammed . | . . . Targets Rammed . | . . . Kicked . | . . . Crushed . | . . . Highest Temperature 269 | . 237 269 Average Temperature 69 | . 54 117 Received Heat Transfer 378 | . 162 216 Effects 1 | . 1 . Energy Bleed 1 | . 1 . Siege Activations . | . . . Martial Activations . | . . . Shielding Activations . | . . . Robots Disrupted . | . . . Combat Hostiles . | . . . Robots Corrupted . | . . . Combat Hostiles . | . . . Parts Fried . | . . . Impact Corruptions . | . . . Robots Melted . | . . . Combat Hostiles . | . . . Parts Melted 4 | . 4 . Heat Transferred 1814 | 75 1332 407 Parts Sabotaged . | . . . Parts Stolen . | . . . Parts Stripped . | . . . Power Chain Reactions . | . . . Alert | -11 -10 -10 ------- Run | Yrd Mat Min Maximum Alert Level . | . . . Low Security (%) 100 | 100 100 100 Level 1 . | . . . Level 2 . | . . . Level 3 . | . . . Level 4 . | . . . Level 5 . | . . . High Security . | . . . Max Security . | . . . Peak Influence 188 | 10 188 89 Initial . | . . . Average 53 | . 61 42 Influence Increases 631 | 10 402 219 Destroy 0b10 Robot/C 460 | . 280 180 Destroy 0b10 Robot/NC 30 | 10 20 . Destroy Leader 78 | . 48 30 Successful Hack 54 | . 54 . Destroy Structure 9 | . . 9 Influence Decreases 562 | 10 402 150 Time Decay 552 | 10 402 140 Lost Part 10 | . . 10 Squads Dispatched 1 | . 1 . Investigation 1 | . 1 . Extermination . | . . . Reinforcement . | . . . Assault . | . . . Garrison . | . . . Intercept . | . . . Searches Triggered . | . . . Construction Impeded . | . . . Haulers Reinforced . | . . . Active Scanning Responses . | . . . Cargo Convoy Interrupts . | . . . Stealth | -11 -10 -10 --------- Run | Yrd Mat Min Distress Signals 2 | . 2 . Communications Jammed . | . . . Distress Signals . | . . . Times Spotted 33 | . 23 10 Peak Tracking Total 4 | . 4 3 Tactical Retreats . | . . . Traps | -11 -10 -10 ------- Run | Yrd Mat Min Traps Triggered 2 | . 2 . Indirectly . | . . . Trap Hack Attempts . | . . . Triggered . | . . . Disarmed . | . . . Reprogrammed . | . . . Reused . | . . . Traps Extracted . | . . . Installed . | . . . Triggered . | . . . Machines | -11 -10 -10 ---------- Run | Yrd Mat Min Machines Disabled . | . . . Max in Single Turn . | . . . Machines Repaired . | . . . Machines Dismantled . | . . . Machines Sabotaged . | . . . Overloaded Fab Kills . | . . . Hacking | -11 -10 -10 --------- Run | Yrd Mat Min Machines Accessed 9 | . 9 . Terminals 7 | . 7 . Fabricators . | . . . Repair Stations 1 | . 1 . Recycling Units 1 | . 1 . Scanalyzers . | . . . Garrison Access . | . . . Total Hacks 33 | . 33 . Successful 22 | . 22 . Failed 10 | . 10 . Catastrophic 2 | . 2 . Database Lockouts 1 | . 1 . Manual 27 | . 27 . Terminals 27 | . 27 . Fabricators . | . . . Repair Stations 4 | . 4 . Recycling Units 2 | . 2 . Scanalyzers . | . . . Garrison Access . | . . . Terminal Hacks 8 | . 8 . Record 1 | . 1 . Robot Analysis 2 | . 2 . Prototype ID Bank 1 | . 1 . Alert Level 1 | . 1 . Transport Status 1 | . 1 . Hauler Manifests 2 | . 2 . Fabricator Hacks . | . . . Repair Station Hacks 4 | . 4 . Scan Component 2 | . 2 . Repair 2 | . 2 . Recycling Unit Hacks 1 | . 1 . Retrieve Matter 1 | . 1 . Scanalyzer . | . . . Garrison Access Hacks . | . . . Unauthorized Hacks 9 | . 9 . Terminals 8 | . 8 . Botnet 7 | . 7 . Operators 1 | . 1 . Fabricators . | . . . Repair Stations . | . . . Recycling Units 1 | . 1 . Recyclers 1 | . 1 . Scanalyzers . | . . . Garrison Access . | . . . Data Cores Recovered . | . . . Used . | . . . Hacking Detections 9 | . 9 . Full Trace Events 1 | . 1 . Feedback Events . | . . . Feedback Blocked . | . . . Robot Schematics Acquired . | . . . Robots Built . | . . . Authchips . | . . . Time . | . . . Total Robot Build Rating . | . . . Part Schematics Acquired . | . . . Parts Built . | . . . Authchips . | . . . Time . | . . . Total Part Build Rating . | . . . Part Studies Acquired . | . . . Parts Repaired 2 | . 2 . Time 52 | . 52 . Parts Recycled . | . . . Recycled Matter . | . . . Retrieved Matter . | . . . Retrieved Components . | . . . Parts Scanalyzed . | . . . Part Schematics Acquired . | . . . Parts Damaged . | . . . Bothacking | -11 -10 -10 ------------ Run | Yrd Mat Min Used RIF Installer . | . . . Robots Hacked . | . . . Non-combat . | . . . Combat . | . . . Robot Hacks Applied . | . . . Relay Couplers Released . | . . . Fabnet Peak Effective % . | . . . Robots Rewired . | . . . Allies Hacked . | . . . Hacks Repelled . | . . . Allies | -11 -10 -10 -------- Run | Yrd Mat Min Total Allies . | . . . Largest Group . | . . . Highest-Rated Group . | . . . Highest-Rated Ally . | . . . Total Orders . | . . . Ally Attacks . | . . . Total Damage . | . . . Kills . | . . . Allies Corrupted . | . . . Allies Melted . | . . . Intel | -11 -10 -10 ------- Run | Yrd Mat Min Active Infowar (turns) 1640 | 53 1299 288 Terrain 1640 | 53 1299 288 Robot Analysis Total 2 | . 2 . Derelict Logs Recovered . | . . . Drone Launches . | . . . Drone Recoveries . | . . . Exploration | -11 -10 -10 ------------- Run | Yrd Mat Min Turns Passed 1725 | 138 1299 288 Spaces Moved 914 | 82 697 135 Core 8 | 8 . . Treads 570 | . 435 135 Legs 336 | 74 262 . Wheels . | . . . Hover . | . . . Flight . | . . . Fastest Speed 50 | 50 120 160 Average Speed 145 | 131 144 160 Slowest Speed 190 | 190 160 160 Overloaded Moves . | . . . Propulsion Burnouts . | . . . Robots Hopped . | . . . Potential Cave-ins . | . . . Cave-ins Triggered . | . . . Exploration Rate (%) 44 | 6 97 31 Regions Visited 2 Branch Regions 1 Pre-discovered Areas . | . . . Known Exits Taken . | . . . Unknown Exits Taken 2 | 1 1 . Scrap Searched 1 | . . 1 Spaces Dug . | . . . Terrain Destroyed 10 | . . 10 Melee . | . . . Projectile . | . . . AOE 10 | . . 10 Terrain Rammed . | . . . Walls Destroyed . | . . . Machines Disabled . | . . . Actions | -11 -10 -10 --------- Run | Yrd Mat Min Total 1143 | 101 873 169 Wait 89 | 1 79 9 Move 912 | 81 696 135 Hop . | . . . Pick Up 19 | 7 11 1 Fast Attach 13 | 4 9 . Attach 3 | 3 . . Detach . | . . . Swap 9 | 1 6 2 Drop 15 | . 14 1 Fire 83 | 4 58 21 Melee . | . . . Ram . | . . . Kick . | . . . Crush . | . . . Escape Stasis . | . . . Rewire . | . . . Trap . | . . . Miscellaneous . | . . . Route ------- -11/Scrapyard -10/Materials (discovered 5 exits: [*Mat x3] / [*Min] / [Sub]) -10/Mines (discovered 1 exit: [*Mat]) History --------- Turn | Location | Event 10 | -11/Scrapyard | Discovered new exit (range 15) 139 | -11/Scrapyard | Entered Materials 212 | -10/Materials | Discovered new exit (range 8) 307 | -10/Materials | Build established: Mutant 313 | -10/Materials | Discovered new exit (range 9) 371 | -10/Materials | Repaired Aluminum Leg 398 | -10/Materials | Repaired Med. Laser 798 | -10/Materials | Central database locked down 812 | -10/Materials | Discovered new exit (range 15) 1092 | -10/Materials | Discovered new exit (range 10) 1212 | -10/Materials | Discovered new exit (range 9) 1438 | -10/Materials | Entered Mines 1440 | -10/Mines | Core integrity fell below 50% 1475 | -10/Mines | Received a Rocket Launcher from a helpful Derelict 1550 | -10/Mines | Discovered new exit (range 15) 1696 | -10/Mines | Core integrity fell below 20% 1726 | -10/Mines | Destroyed by G-47 Trooper with Particle Gun Last Messages --------------- 01539_ Found Aluminum Leg. 01539_ Found 62 Matter. 01550_ EXIT=FOUND 01596_ S-10 Pest destroyed. 01596_ Destroyed Lgt. Ion Engine. 01596_ S-10 Pest destroyed. 01607_ Acquired 8 matter. 01610_ Acquired 9 matter. 01611_ Acquired 5 matter. 01674_ K-01 Serf cleans the Plasma Injector. 01687_ G-34 Mercenary destroyed. 01692_ Critical hit (Burn: +37). 01692_ K-01 Serf collects debris. 01699_ G-47 Trooper destroyed. 01704_ Acquired 33 matter. 01716_ G-34 Mercenary destroyed. 01716_ Switching to secondary target: G-47 Trooper. 01720_ Lgt. Treads destroyed. Map ----- +----------------------------------------------------+ | ??????????????????????? ?????????????????????????? | | ?????????? ???????????????????? ?????????????????? | | ?????????????????????????#???????????????????????? | | ???????????????#?????????????????????????????????? | | ?????????????????????????????????? ??????????????? | | ??????????#???? ???????????#?????????????????????? | | ?????????????????????????????????????????????????? | | ????????#?#?????#??####???#??????????????????????? | | ???????????#?#????##= ##??? ?????????????????????? | | ???????????#??????#[%* ##???#????????????????????? | | ??????????????????# =#???? ???????????????????? | | ???????????#????#### ### #?? ?????????????????? | | ???? ???????????# # #?????????????????? | | ????????????????# ### ###### #?????????????????? | | ???#????????????#]#?####?#??# ##????????????????? | | ?????#????#?????# ###?????## #????????????????? | | ?????? ????????## ##???## ? ???????????????? | | ??????? ??????## #???# #??? ?????????????? | | ???#???# ????## #??## #?#???##??????????? | | ???????# ##??# #??# ##??? #???????????? | | ? ?????? ??# ##??# ### $##??????????? | | ????????## ### ###???# #??????????? | | ?????????# t r ######## ???????????? | | ?????????# #? ????????????? | | ??????#??## # g = =%= #????????#????????? | | ??????????# ## #####% @= ##?????????????????? | | ????????#?# #####???# ##%= ##?????????????????? | | ??????????# ##????## ?#?##! #######??#?????????? | | ??????#???# #???? ?????### ## ##?????#????#? | | ???######## #??# ???????### ##?????#????? | | #??#?????????## #?#???#?????? | | ???######## #?#??? ? ???## """ ##??????#????? | | ???????## ###???#????## """ ###???????????# | | ????????# ##?????#?# """ #####??????????? | | ????????# ##????#?# #????#?#???? | | ????????# #???#?### ##?????????? | | ????#???## # #???????##### #### ##?????????? | | ?????????#### ##????#?#????#####??# #????#?????# | | ???????#????# #?????#????#???#???## ##???#?????? | | ???????????## #??#??????#??#????## #??????????? | | ????????????# ##???#?????#??????# ###??#?????? | | ????????????# #????????????????## #########?? | | ????????????# #???????????##?### #?? | | ????????????# ##???????#??#?## #?? | | ??????#?????#!%############### ####### #?? | | ????????????# = < #?????# #?? | | ????????????################### #???### ### | | ??????????????????????????????## #???# = | | ????????#??????????????????????### #???# = | | ?????????????????????????????????## ##???#* [ | +----------------------------------------------------+ Best States ------------- Heat Dissipation 25 Energy Generation 12 Energy Capacity 265 Matter Stores 300 Matter Capacity 300 Sight Range 16 Terrain Scan Range 16 Terrain Scan Density 10 Evasion (%) 55 Recoil Reduction 2 Item Schematics ----------------- None Robot Schematics ------------------ None Fabricated ------------ Nothing Repaired ---------- Aluminum Leg | 72% | -10/Materials Med. Laser | 68% | -10/Materials Studied --------- None Alien Tech Used ----------------- None Achievements -------------- None Challenges ------------ None Game ------ Seed CommRainbowHarness Manual? 0 Play Time 00:15:38 Cumulative 17.5 hours Start 2026.01.17 @ 14:56:57 End 2026.01.17 @ 15:11:59 Sessions 1 Manual Loads 0 Difficulty Rogue Special Mode None Game No. 29 Rogue 29 Adventurer 0 Explorer 0 Win Type - Total 1 Types 1/0/0/0/0/0/0/0/0/0 Lore% 16 Gallery% 19 Achievement% 15 Wizard Run 0 Options --------- Layout 1 ASCII 0 Keyboard 0 Movement Mouse Keybinds 0 Fullscreen 1 Font 24/Smallcaps Map View 50x35 Zoom Use 0% Tactical HUD 1 Map Filters NONE Filters NONE Steam 1 RUN: 390e7758-46dc-49ed-a466-5a2d23f234d6